fUSD/lending_fUSD_20250322
["ID","MTS","AMOUNT","RATE_DAILY","PERIOD"]
[356525509,1742611864685,-598.31,0.00047123,120]
[356525510,1742611864694,-500.0,0.00047123,120]
[356525511,1742611864704,-988.34,0.00047123,120]
[356525512,1742611864713,-500.0,0.00047123,120]
[356525513,1742611864723,-500.0,0.00047123,120]
[356525514,1742611864732,-531.66,0.00047123,120]
[356525515,1742611864741,-500.0,0.00047123,120]
[356525516,1742611864750,-996.37,0.00047123,120]
[356525517,1742611864759,-500.0,0.00047123,120]
[356525518,1742611864768,-500.0,0.00047123,120]
[356525519,1742611864777,-829.62,0.00047123,120]
[356525520,1742611864787,-500.0,0.00047123,120]
[356525521,1742611864796,-500.0,0.00047123,120]
[356525522,1742611864805,-500.0,0.00047123,120]
[356525523,1742611864814,-500.0,0.00047123,120]
[356525524,1742611864823,-500.0,0.00047123,120]
[356525525,1742611864832,-500.0,0.00047123,120]
[356525526,1742611864841,-540.9,0.00047123,120]
[356525527,1742611864850,-1237.27,0.00047123,120]
[356525528,1742611864859,-500.0,0.00047123,120]
[356525529,1742611864868,-500.0,0.00047123,120]
[356525530,1742611864877,-500.0,0.00047123,120]
[356525531,1742611864886,-500.0,0.00047123,120]
[356525532,1742611864895,-500.0,0.00047123,120]
[356525533,1742611864905,-500.0,0.00047123,120]
[356525534,1742611864914,-571.77,0.00047123,120]
[356525535,1742611864923,-1188.07,0.00047123,120]
[356525536,1742611864933,-1166.84,0.00047123,120]
[356525537,1742611864942,-840.25,0.00047123,120]
[356525538,1742611864951,-609.82,0.00047123,120]
[356525539,1742611864960,-207.15508378,0.00047123,120]
[356525540,1742611864970,-500.0,0.00047123,120]
[356525541,1742611864979,-500.0,0.00047123,120]
[356525542,1742611864988,-800.08,0.00047123,120]
[356525543,1742611864998,-1014.78,0.00047123,120]
[356525544,1742611865007,-500.0,0.00047123,120]
[356525545,1742611865020,-672.78,0.00047123,120]
[356525546,1742611865029,-500.0,0.00047123,120]
[356525547,1742611865039,-1087.82,0.00047123,120]
[356525548,1742611865048,-211.91023104,0.00047123,120]
[356525549,1742611865058,-500.0,0.00047123,120]
[356525550,1742611865067,-500.0,0.00047123,120]
[356525551,1742611865076,-500.0,0.00047123,120]
[356525552,1742611865085,-500.0,0.00047123,120]
[356525553,1742611865095,-500.0,0.00047123,120]
[356525554,1742611865104,-537.33,0.00047123,120]
[356525555,1742611865113,-592.25,0.00047123,120]
[356525556,1742611865122,-500.0,0.00047123,120]
[356525557,1742611865132,-500.0,0.00047123,120]
[356525558,1742611865141,-500.0,0.00047123,120]
[356525559,1742611865151,-527.9,0.00047123,120]
[356525560,1742611865160,-500.0,0.00047123,120]
[356525561,1742611865338,-500.0,0.00047123,120]
[356525562,1742611865348,-500.0,0.00047123,120]
[356525563,1742611865358,-500.0,0.00047123,120]
[356525564,1742611865368,-500.0,0.00047123,120]
[356525565,1742611865378,-659.25,0.00047123,120]
[356525566,1742611865387,-500.0,0.00047123,120]
[356525567,1742611865397,-791.65,0.00047123,120]
[356525568,1742611865406,-1015.43,0.00047123,120]
[356525569,1742611865415,-2002.41,0.00047123,120]
[356525570,1742611865425,-500.0,0.00047123,120]
[356525571,1742611865435,-500.0,0.00047123,120]
[356525572,1742611865444,-526.74,0.00047123,120]
[356525573,1742611865454,-500.0,0.00047123,120]
[356525574,1742611865463,-500.0,0.00047123,120]
[356525575,1742611865472,-500.0,0.00047123,120]
[356525576,1742611865482,-500.0,0.00047123,120]
[356525577,1742611865491,-500.0,0.00047123,120]
[356525578,1742611865501,-500.0,0.00047123,120]
[356525579,1742611865511,-870.18,0.00047123,120]
[356525580,1742611865520,-15.87994734,0.00047123,120]
[356525584,1742612655980,-300.0,0.000398,5]
[356525585,1742612700942,-160.0,0.00045641,120]
[356525586,1742612700965,-81.8265,0.00046123,120]
[356525587,1742612747697,3673.29171419,0.00031337,30]
[356525597,1742612755005,-160.65,0.00026849,2]
[356525614,1742612996556,500000.0,0.00031337,30]
[356525617,1742613031699,-5263.0,0.000425,5]
[356525618,1742613031709,-206.86168345,0.000439,9]
[356525619,1742613031719,-247.25803,0.00043979,2]
[356525620,1742613031728,-150.0,0.00044089,2]
[356525621,1742613031738,-150.0,0.00044678,2]
[356525622,1742613031747,-1102.0222,0.00044938,2]
[356525623,1742613031757,-180.9,0.00045238,2]
[356525624,1742613031767,-150.0,0.00045245,2]
[356525625,1742613031777,-175.895,0.00045265,2]
[356525626,1742613031786,-167.53,0.00045292,2]
[356525627,1742613031795,-155.68,0.00045385,2]
[356525628,1742613031804,-151.55,0.00045419,2]
[356525629,1742613031814,-550.0,0.00045502,5]
[356525630,1742613031823,-1000.0,0.00045503,2]
[356525631,1742613031832,-250.0,0.00045503,2]
[356525632,1742613031841,-420.90545066,0.00046123,120]
[356525633,1742613031851,-1056.36597416,0.00046181,10]
[356525634,1742613031861,-1000.0,0.000462,2]
[356525635,1742613031870,-155.68,0.00046293,2]
[356525636,1742613031879,-1220.0,0.00046301,120]
[356525637,1742613031888,-2055.0657,0.00046375,2]
[356525638,1742613031897,-176.032211,0.00046398,120]
[356525639,1742613031907,-150.0,0.00046454,2]
[356525640,1742613031916,-177.043,0.00046475,77]
[356525641,1742613031925,-309.23502285,0.00046475,15]
[356525642,1742613031935,-300.0,0.00046475,4]
[356525643,1742613031944,-666.95454868,0.00046475,18]
[356525644,1742613031954,-1247.5867,0.00046475,120]
[356525645,1742613031963,-5000.0,0.00046475,120]
[356525646,1742613031972,-176.032211,0.00046498,120]
[356525647,1742613031982,-150.0,0.00046548,30]
[356525648,1742613031992,-150.0,0.00046548,30]
[356525649,1742613032004,-150.35115678,0.00046548,30]
[356525650,1742613032014,-150.0,0.00046548,30]
[356525651,1742613032023,-150.0,0.00046548,30]
[356525652,1742613032032,-793.89,0.00046549,31]
[356525653,1742613032043,-515.56504907,0.0004655,120]
[356525654,1742613032052,-637.75,0.0004655,120]
[356525655,1742613032062,-637.7,0.0004655,120]
[356525656,1742613032072,-637.7,0.0004655,120]
[356525657,1742613032082,-637.7,0.0004655,120]
[356525658,1742613032091,-637.7,0.0004655,120]
[356525659,1742613032100,-637.7,0.0004655,120]
[356525660,1742613032110,-637.7,0.0004655,120]
[356525661,1742613032119,-637.7,0.0004655,120]
[356525662,1742613032129,-637.7,0.0004655,120]
[356525663,1742613032138,-637.7,0.0004655,120]
[356525664,1742613032147,-637.7,0.0004655,120]
[356525665,1742613032156,-637.7,0.0004655,120]
[356525666,1742613032166,-637.7,0.0004655,120]
[356525667,1742613032175,-637.7,0.0004655,120]
[356525668,1742613032184,-500.0,0.0004655,120]
[356525669,1742613032194,-500.0,0.0004655,120]
[356525670,1742613032203,-500.0,0.0004655,120]
[356525671,1742613032212,-500.0,0.0004655,120]
[356525672,1742613032221,-500.0,0.0004655,120]
[356525673,1742613032230,-500.0,0.0004655,120]
[356525674,1742613032239,-500.0,0.0004655,120]
[356525675,1742613032249,-500.0,0.0004655,120]
[356525676,1742613032258,-500.0,0.0004655,120]
[356525677,1742613032267,-500.0,0.0004655,120]
[356525678,1742613032277,-4339.918453,0.00046565,3]
[356525679,1742613032287,-299.19436634,0.00046574,120]
[356525680,1742613032296,-196.85195498,0.00046574,120]
[356525681,1742613032306,-155.76298132,0.00046574,120]
[356525682,1742613032315,-363.675,0.00046574,120]
[356525683,1742613032325,-150.0,0.00046575,30]
[356525684,1742613032334,-500.0,0.00046575,120]
[356525685,1742613032344,-500.0,0.00046575,5]
[356525686,1742613032352,-356.40571684,0.00046575,3]
[356525687,1742613032373,-143.59428316,0.00046575,3]
[356525688,1742613032383,-1245.374942,0.00046575,120]
[356525689,1742613032392,-159.543633,0.00046575,120]
[356525690,1742613032402,-151.14078595,0.00046575,120]
[356525691,1742613032426,-348.85921405,0.00046575,120]
[356525692,1742613032435,-500.0,0.00046575,120]
[356525693,1742613032444,-158.563688,0.00046575,120]
[356525694,1742613032454,-500.0,0.00046575,120]
[356525695,1742613032464,-928.8,0.00046575,120]
[356525696,1742613032474,-500.0,0.00046575,120]
[356525697,1742613032483,-500.0,0.00046575,120]
[356525698,1742613032492,-522.07,0.00046575,120]
[356525699,1742613032502,-466.4053952,0.00046575,120]
[356525700,1742613032510,-500.0,0.00046575,120]
[356525701,1742613032520,-823.1665644,0.00046575,2]
[356525702,1742613037550,-637.7,0.0004655,120]
[356525703,1742613037569,-136.7934356,0.00046575,2]
[356525704,1742613037581,-500.0,0.00046575,120]
[356525705,1742613037591,-500.0,0.00046575,120]
[356525706,1742613037600,-883.13796648,0.00046575,120]
[356525707,1742613037612,-462.45588772,0.00046575,120]
[356525708,1742613037624,-228.1061458,0.00046575,120]
[356525709,1742613037634,-1588.40074,0.00046575,120]
[356525710,1742613037645,-500.0,0.00046575,120]
[356525711,1742613037655,-500.0,0.00046575,120]
[356525712,1742613037666,-500.0,0.00046575,60]
[356525713,1742613037677,-500.0,0.00046575,120]
[356525714,1742613037687,-500.0,0.00046575,120]
[356525715,1742613037696,-500.0,0.00046575,120]
[356525716,1742613037706,-500.0,0.00046575,120]
[356525717,1742613037716,-635.38,0.00046575,120]
[356525718,1742613037726,-312.87779135,0.00046575,120]
[356525719,1742613037782,-425.00220865,0.00046575,120]
[356525720,1742613037792,-500.0,0.00046575,120]
[356525721,1742613037801,-558.98374754,0.00046575,120]
[356525722,1742613037849,-275.49625246,0.00046575,120]
[356525723,1742613037859,-505.85076404,0.00046575,120]
[356525724,1742613037870,-500.0,0.00046575,120]
[356525725,1742613037879,-500.0,0.00046575,120]
[356525726,1742613037889,-593.28,0.00046575,120]
[356525727,1742613037898,-503.79046253,0.00046575,120]
[356525728,1742613037907,-500.0,0.00046575,120]
[356525729,1742613037917,-916.32,0.00046575,120]
[356525730,1742613037926,-513.438476,0.00046575,120]
[356525731,1742613037936,-842.27,0.00046575,120]
[356525732,1742613037946,-500.0,0.00046575,120]
[356525733,1742613037956,-181.11431603,0.00046575,120]
[356525734,1742613037965,-500.0,0.00046575,120]
[356525735,1742613037975,-500.0,0.00046575,120]
[356525736,1742613037984,-319.89974001,0.00046575,120]
[356525737,1742613038081,-185.42025999,0.00046575,120]
[356525738,1742613038091,-500.0,0.00046575,120]
[356525739,1742613038102,-500.0,0.00046575,120]
[356525740,1742613038112,-500.0,0.00046575,120]
[356525741,1742613038122,-500.0,0.00046575,120]
[356525742,1742613038132,-500.0,0.00046575,120]
[356525743,1742613038143,-500.0,0.00046575,120]
[356525744,1742613038152,-500.0,0.00046575,120]
[356525745,1742613038162,-500.0,0.00046575,120]
[356525746,1742613038171,-596.11511031,0.00046575,120]
[356525747,1742613038180,-266.50180399,0.00046575,120]
[356525748,1742613039758,-346.90770526,0.0004655,120]
[356525749,1742613039770,-266.6244499,0.0004655,120]
[356525750,1742613039812,-24.16784484,0.0004655,120]
[356525751,1742613039822,-233.49819601,0.00046575,120]
[356525752,1742613039831,-128.55692953,0.00046575,120]
[356525753,1742613039909,-371.44307047,0.00046575,120]
[356525754,1742613039919,-500.0,0.00046575,120]
[356525755,1742613039928,-500.0,0.00046575,120]
[356525756,1742613039938,-500.0,0.00046575,120]
[356525757,1742613039947,-500.0,0.00046575,120]
[356525758,1742613039956,-501.63045023,0.00046575,120]
[356525759,1742613039966,-534.53487509,0.00046575,120]
[356525760,1742613039975,-127.7534753,0.00046575,120]
[356525761,1742613039989,-372.2465247,0.00046575,120]
[356525762,1742613039999,-500.0,0.00046575,120]
[356525763,1742613040013,-500.0,0.00046575,120]
[356525764,1742613040022,-500.0,0.00046575,120]
[356525765,1742613040033,-500.0,0.00046575,120]
[356525766,1742613040042,-481.60623108,0.00046575,120]
[356525767,1742613040055,-25.26376892,0.00046575,120]
[356525768,1742613040065,-556.62,0.00046575,120]
[356525769,1742613040074,-500.0,0.00046575,120]
[356525770,1742613040086,-417.91918169,0.00046575,120]
[356525771,1742613040134,-165.71081831,0.00046575,120]
[356525772,1742613040144,-500.0,0.00046575,120]
[356525773,1742613040154,-25.4196371,0.00046575,120]
[356525774,1742613040166,-474.5803629,0.00046575,120]
[356525775,1742613040176,-518.6634509,0.00046575,120]
[356525776,1742613040186,-500.0,0.00046575,120]
[356525777,1742613040195,-500.0,0.00046575,120]
[356525778,1742613040205,-500.0,0.00046575,120]
[356525779,1742613040214,-500.0,0.00046575,120]
[356525780,1742613040224,-500.0,0.00046575,120]
[356525781,1742613040234,-568.19460193,0.00046575,120]
[356525783,1742613040243,-500.0,0.00046575,120]
[356525785,1742613040252,-500.0,0.00046575,120]
[356525787,1742613040261,-783.4,0.00046575,120]
[356525789,1742613040271,-522.72814577,0.00046575,120]
[356525791,1742613040281,-500.0,0.00046575,120]
[356525793,1742613040290,-500.0,0.00046575,120]
[356525795,1742613040300,-613.18703548,0.00046575,120]
[356525799,1742613040329,-46.99296452,0.00046575,120]
[356525801,1742613040339,-500.0,0.00046575,120]
[356525803,1742613040349,-500.0,0.00046575,120]
[356525805,1742613040359,-500.0,0.00046575,120]
[356525807,1742613040368,-500.0,0.00046575,120]
[356525809,1742613040377,-500.0,0.00046575,120]
[356525811,1742613040390,-500.0,0.00046575,120]
[356525813,1742613040400,-500.0,0.00046575,120]
[356525815,1742613040409,-500.0,0.00046575,120]
[356525817,1742613040419,-500.0,0.00046575,120]
[356525819,1742613040428,-500.0,0.00046575,120]
[356525821,1742613040438,-500.0,0.00046575,120]
[356525823,1742613040448,-500.0,0.00046575,120]
[356525825,1742613040457,-500.0,0.00046575,120]
[356525827,1742613040467,-500.0,0.00046575,120]
[356525829,1742613040476,-500.0,0.00046575,120]
[356525831,1742613040486,-500.0,0.00046575,120]
[356525833,1742613040496,-500.0,0.00046575,120]
[356525834,1742613040506,-500.0,0.00046575,120]
[356525835,1742613040515,-453.00703548,0.00046575,120]
[356525836,1742613040542,-46.99296452,0.00046575,120]
[356525837,1742613040551,-500.0,0.00046575,120]
[356525838,1742613040561,-0.04170214,0.00046575,120]
[356525839,1742613040573,-452.9945539,0.00046575,120]
[356525840,1742613040585,-46.96374396,0.00046575,120]
[356525841,1742613040595,-500.0,0.00046575,120]
[356525842,1742613040605,-500.0,0.00046575,120]
[356525843,1742613040615,-1003.07,0.00046575,120]
[356525844,1742613040624,-500.0,0.00046575,120]
[356525845,1742613040634,-500.0,0.00046575,120]
[356525846,1742613040644,-503.94220396,0.00046575,120]
[356525847,1742613040656,-2.45528058,0.00046575,120]
[356525848,1742613040666,-500.0,0.00046575,120]
[356525849,1742613040676,-500.0,0.00046575,120]
[356525850,1742613040685,-500.0,0.00046575,120]
[356525851,1742613040695,-575.72,0.00046575,120]
[356525852,1742613040704,-506.59544899,0.00046575,120]
[356525853,1742613040714,-500.0,0.00046575,120]
[356525854,1742613040723,-500.0,0.00046575,120]
[356525855,1742613040733,-519.19,0.00046575,120]
[356525856,1742613040743,-728.17,0.00046575,120]
[356525857,1742613040753,-500.0,0.00046575,120]
[356525858,1742613040762,-500.0,0.00046575,120]
[356525859,1742613040772,-500.0,0.00046575,120]
[356525860,1742613040781,-500.0,0.00046575,120]
[356525861,1742613040791,-500.0,0.00046575,120]
[356525862,1742613040800,-500.0,0.00046575,120]
[356525863,1742613040809,-500.0,0.00046575,120]
[356525864,1742613040819,-500.0,0.00046575,120]
[356525865,1742613040829,-503.97417897,0.00046575,120]
[356525866,1742613040838,-500.0,0.00046575,120]
[356525867,1742613040848,-352.84855078,0.00046575,120]
[356525868,1742613040857,-500.0,0.00046575,120]
[356525869,1742613040866,-586.42,0.00046575,120]
[356525870,1742613040876,-501.06278525,0.00046575,120]
[356525871,1742613040885,-501.41555164,0.00046575,120]
[356525872,1742613040895,-500.0,0.00046575,120]
[356525873,1742613040904,-328.02552398,0.00046575,120]
[356525882,1742613042795,-5000.0,0.00046475,120]
[356525883,1742613042805,-293.70447602,0.00046575,120]
[356525884,1742613042815,-503.22646431,0.00046575,120]
[356525885,1742613042825,-331.72540593,0.00046575,120]
[356525886,1742613042837,-262.57459407,0.00046575,120]
[356525887,1742613042846,-756.44,0.00046575,120]
[356525888,1742613042856,-500.0,0.00046575,120]
[356525889,1742613042865,-488.66304844,0.00046575,120]
[356525890,1742613042877,-11.33695156,0.00046575,120]
[356525891,1742613042886,-251.38053582,0.00046575,120]
[356525892,1742613042902,-248.61946418,0.00046575,120]
[356525893,1742613042912,-500.0,0.00046575,120]
[356525894,1742613042921,-172.58073582,0.00046575,120]
[356525895,1742613042937,-364.08926418,0.00046575,120]
[356525896,1742613042947,-500.0,0.00046575,120]
[356525897,1742613042956,-619.88,0.00046575,120]
[356525898,1742613042967,-182.91523442,0.00046575,120]
[356525899,1742613042976,-249.15454984,0.00046575,120]
[356525900,1742613042985,-978.25581203,0.00046575,28]
[356525901,1742613042994,-500.0,0.00046575,120]
[356525902,1742613043006,-500.0,0.00046575,120]
[356525903,1742613043016,-500.0,0.00046575,120]
[356525904,1742613043025,-500.0,0.00046575,120]
[356525905,1742613043034,-494.29835804,0.00046575,120]
[356525906,1742613043044,-979.7,0.00046575,120]
[356525907,1742613043054,-500.0,0.00046575,120]
[356525908,1742613043064,-500.0,0.00046575,120]
[356525909,1742613043073,-500.0,0.00046575,120]
[356525910,1742613043083,-500.0,0.00046575,120]
[356525911,1742613043093,-500.0,0.00046575,120]
[356525912,1742613043103,-3150.35,0.00046575,120]
[356525913,1742613043111,-500.0,0.00046575,120]
[356525914,1742613043121,-350.0,0.00046575,2]
[356525915,1742613043133,-500.0,0.00046575,120]
[356525916,1742613043142,-500.0,0.00046575,120]
[356525917,1742613043151,-500.0,0.00046575,120]
[356525918,1742613043160,-500.0,0.00046575,120]
[356525919,1742613043169,-500.0,0.00046575,120]
[356525920,1742613043178,-500.0,0.00046575,120]
[356525921,1742613043186,-500.0,0.00046575,120]
[356525922,1742613043195,-500.0,0.00046575,120]
[356525923,1742613043204,-961.64,0.00046575,120]
[356525925,1742613043213,-505.81214779,0.00046575,120]
[356525927,1742613043222,-761.55,0.00046575,120]
[356525929,1742613043232,-631.43,0.00046575,120]
[356525931,1742613043241,-500.0,0.00046575,120]
[356525933,1742613043250,-899.5,0.00046575,120]
[356525935,1742613043259,-500.0,0.00046575,120]
[356525937,1742613043268,-500.0,0.00046575,120]
[356525938,1742613043278,-752.68,0.00046575,120]
[356525939,1742613043287,-504.42927102,0.00046575,120]
[356525940,1742613043297,-585.74,0.00046575,120]
[356525941,1742613043307,-500.0,0.00046575,120]
[356525942,1742613043317,-788.14,0.00046575,120]
[356525943,1742613043326,-500.0,0.00046575,120]
[356525944,1742613043335,-155.004836,0.00046575,14]
[356525945,1742613043344,-204.72286586,0.00046575,120]
[356525947,1742613043354,-500.0,0.00046575,120]
[356525949,1742613043364,-500.0,0.00046575,120]
[356525951,1742613043373,-500.0,0.00046575,120]
[356525953,1742613043383,-500.0,0.00046575,120]
[356525955,1742613043392,-849.06,0.00046575,120]
[356525957,1742613043401,-500.0,0.00046575,120]
[356525958,1742613043411,-614.08,0.00046575,120]
[356525959,1742613043420,-505.59,0.00046575,120]
[356525960,1742613043430,-508.07,0.00046575,2]
[356525961,1742613043440,-500.0,0.00046575,120]
[356525962,1742613043449,-500.0,0.00046575,120]
[356525963,1742613043459,-384.27274981,0.00046575,120]
[356525964,1742613043468,-151.0,0.00046575,14]
[356525965,1742613043477,-500.0,0.00046575,120]
[356525966,1742613043487,-2349.6,0.00046575,120]
[356525967,1742613043496,-500.0,0.00046575,120]
[356525968,1742613043505,-1431.82,0.00046575,120]
[356525969,1742613043514,-807.38,0.00046575,120]
[356525970,1742613043524,-961.05,0.00046575,120]
[356525971,1742613043534,-500.0,0.00046575,120]
[356525972,1742613043543,-500.0,0.00046575,120]
[356525973,1742613043553,-500.0,0.00046575,120]
[356525974,1742613043562,-500.0,0.00046575,120]
[356525975,1742613043572,-500.0,0.00046575,120]
[356525976,1742613043582,-688.73,0.00046575,120]
[356525977,1742613043592,-2445.73,0.00046575,120]
[356525978,1742613043601,-556.40720236,0.00046575,120]
[356525979,1742613043611,-702.37,0.00046575,120]
[356525980,1742613043620,-1068.21,0.00046575,120]
[356525981,1742613043631,-943.82,0.00046575,120]
[356525982,1742613043641,-500.0,0.00046575,120]
[356525983,1742613043651,-305.62535472,0.00046575,120]
[356525984,1742613043661,-500.0,0.00046575,120]
[356525985,1742613043671,-500.0,0.00046575,120]
[356525986,1742613043680,-500.0,0.00046575,120]
[356525987,1742613043690,-500.0,0.00046575,120]
[356525988,1742613043700,-542.63703578,0.00046575,120]
[356525989,1742613043709,-500.0,0.00046575,120]
[356525990,1742613043718,-508.04549448,0.00046575,120]
[356525991,1742613043727,-500.0,0.00046575,120]
[356525992,1742613043737,-500.0,0.00046575,120]
[356525993,1742613043746,-509.31237746,0.00046575,120]
[356525994,1742613043756,-500.0,0.00046575,120]
[356525995,1742613043765,-639.54,0.00046575,120]
[356525996,1742613043776,-500.0,0.00046575,120]
[356525997,1742613043786,-760.46,0.00046575,120]
[356525998,1742613043795,-500.0,0.00046575,120]
[356525999,1742613044052,-500.0,0.00046575,120]
[356526000,1742613044061,-500.0,0.00046575,120]
[356526001,1742613044071,-1358.69,0.00046575,120]
[356526002,1742613044081,-500.0,0.00046575,120]
[356526003,1742613044091,-500.0,0.00046575,120]
[356526004,1742613044101,-969.22,0.00046575,120]
[356526005,1742613044111,-500.0,0.00046575,120]
[356526006,1742613044121,-500.0,0.00046575,120]
[356526007,1742613044133,-151.0,0.00046575,14]
[356526008,1742613044142,-500.0,0.00046575,120]
[356526009,1742613044152,-500.0,0.00046575,120]
[356526010,1742613044162,-508.38520644,0.00046575,120]
[356526011,1742613044172,-500.0,0.00046575,120]
[356526012,1742613044181,-508.78852565,0.00046575,120]
[356526013,1742613044192,-500.0,0.00046575,120]
[356526014,1742613044202,-500.0,0.00046575,120]
[356526015,1742613044211,-550.1354444,0.00046575,120]
[356526016,1742613044221,-236.614895,0.00046575,14]
[356526017,1742613044231,-511.89277163,0.00046575,120]
[356526018,1742613044240,-539.89555063,0.00046575,120]
[356526019,1742613044250,-500.0,0.00046575,120]
[356526020,1742613044260,-694.99,0.00046575,120]
[356526021,1742613044269,-739.15,0.00046575,120]
[356526022,1742613044278,-505.21309929,0.00046575,120]
[356526023,1742613044288,-500.0,0.00046575,120]
[356526024,1742613044298,-500.0,0.00046575,120]
[356526025,1742613044308,-324.33951796,0.00046575,120]
[356526026,1742613044318,-500.0,0.00046575,120]
[356526027,1742613044327,-151.0,0.00046575,14]
[356526028,1742613044336,-528.15368761,0.00046575,120]
[356526029,1742613044346,-500.0,0.00046575,120]
[356526030,1742613044355,-948.13,0.00046575,120]
[356526031,1742613044364,-500.0,0.00046575,120]
[356526032,1742613044373,-517.04340587,0.00046575,120]
[356526033,1742613044387,-500.0,0.00046575,120]
[356526034,1742613044398,-876.43,0.00046575,120]
[356526035,1742613044409,-500.0,0.00046575,120]
[356526036,1742613044419,-500.0,0.00046575,120]
[356526037,1742613044428,-500.0,0.00046575,120]
[356526038,1742613044437,-833.71,0.00046575,120]
[356526039,1742613044447,-500.0,0.00046575,120]
[356526040,1742613044456,-500.0,0.00046575,30]
[356526041,1742613044466,-500.87274877,0.00046575,120]
[356526042,1742613044476,-824.1,0.00046575,120]
[356526043,1742613044485,-506.17,0.00046575,120]
[356526044,1742613044494,-300.0,0.00046575,2]
[356526045,1742613044504,-500.0,0.00046575,120]
[356526046,1742613044514,-500.0,0.00046575,120]
[356526047,1742613044524,-500.0,0.00046575,120]
[356526048,1742613044534,-500.0,0.00046575,120]
[356526049,1742613044544,-500.0,0.00046575,120]
[356526050,1742613044554,-500.0,0.00046575,120]
[356526051,1742613044564,-1408.37,0.00046575,120]
[356526052,1742613044575,-500.0,0.00046575,120]
[356526053,1742613044584,-674.6,0.00046575,120]
[356526054,1742613044595,-500.0,0.00046575,120]
[356526055,1742613044604,-500.0,0.00046575,120]
[356526056,1742613044613,-394.85710804,0.00046575,120]
[356526057,1742613044623,-729.54,0.00046575,120]
[356526058,1742613044633,-729.54,0.00046575,120]
[356526059,1742613044643,-535.89029825,0.00046575,120]
[356526060,1742613044652,-729.54,0.00046575,120]
[356526061,1742613044662,-729.54,0.00046575,120]
[356526062,1742613044672,-729.54,0.00046575,120]
[356526063,1742613044681,-729.54,0.00046575,120]
[356526064,1742613044691,-500.0,0.00046575,120]
[356526065,1742613044700,-540.67,0.00046575,120]
[356526066,1742613044709,-500.0,0.00046575,120]
[356526067,1742613044719,-500.0,0.00046575,120]
[356526068,1742613044728,-500.0,0.00046575,120]
[356526069,1742613044738,-510.47,0.00046575,120]
[356526070,1742613044747,-500.0,0.00046575,120]
[356526071,1742613044757,-500.0,0.00046575,30]
[356526072,1742613044766,-500.0,0.00046575,120]
[356526073,1742613044775,-1577.14,0.00046575,120]
[356526074,1742613044785,-500.0,0.00046575,120]
[356526075,1742613044795,-2799.39,0.00046575,120]
[356526076,1742613044805,-500.0,0.00046575,120]
[356526077,1742613044815,-1153.83,0.00046575,120]
[356526078,1742613044825,-654.72,0.00046575,120]
[356526079,1742613044835,-500.0,0.00046575,120]
[356526080,1742613044845,-500.0,0.00046575,120]
[356526081,1742613044855,-1443.74,0.00046575,7]
[356526082,1742613044865,-1140.24,0.00046575,120]
[356526083,1742613044874,-577.87,0.00046575,120]
[356526084,1742613044884,-500.0,0.00046575,120]
[356526085,1742613044894,-521.65,0.00046575,120]
[356526086,1742613044905,-500.0,0.00046575,120]